[Event "*** Titled Tuesday Blitz"]
[Site "Chess.com"]
[Date "2021.04.20"]
[Round "10"]
[White "GMSrinath"]
[Black "Iball95"]
[Result "1/2-1/2"]
[WhiteElo "2827"]
[BlackElo "2613"]
[TimeControl "180+1"]
[EndTime "11:57:27 PDT"]
[Termination "Game drawn - insufficient material"]

1. Nf3 {[%clk 0:03:00.9]} 1... g6 {[%clk 0:02:49.1]} 2. g3 {[%clk 0:03:00.4]}
2... Bg7 {[%clk 0:02:49.2]} 3. Bg2 {[%clk 0:03:01]} 3... Nf6 {[%clk 0:02:49.7]}
4. O-O {[%clk 0:03:01.6]} 4... O-O {[%clk 0:02:50.2]} 5. c4 {[%clk 0:03:02.2]}
5... c5 {[%clk 0:02:50.5]} 6. d4 {[%clk 0:03:01.6]} 6... cxd4 {[%clk 0:02:51.4]}
7. Nxd4 {[%clk 0:03:02.5]} 7... Nc6 {[%clk 0:02:52.1]} 8. Nc3 {[%clk 0:03:03.1]}
8... Qa5 {[%clk 0:02:52.1]} 9. h3 {[%clk 0:02:59.6]} 9... d6 {[%clk 0:02:51.3]}
10. Nb3 {[%clk 0:02:59.6]} 10... Qh5 {[%clk 0:02:50.7]} 11. e4 {[%clk
0:03:00.2]} 11... Be6 {[%clk 0:02:42.9]} 12. Nd5 {[%clk 0:02:57]} 12... Qxd1
{[%clk 0:02:40.8]} 13. Rxd1 {[%clk 0:02:57.9]} 13... Bxd5 {[%clk 0:02:40.4]} 14.
cxd5 {[%clk 0:02:55.1]} 14... Ne5 {[%clk 0:02:40]} 15. Be3 {[%clk 0:02:47.4]}
15... Nc4 {[%clk 0:02:37.8]} 16. Bd4 {[%clk 0:02:47.1]} 16... Nd7 {[%clk
0:02:36.4]} 17. Bf1 {[%clk 0:02:32.7]} 17... Rfc8 {[%clk 0:02:31.2]} 18. Rab1
{[%clk 0:02:17.7]} 18... a5 {[%clk 0:02:15.7]} 19. a4 {[%clk 0:02:10]} 19...
Ndb6 {[%clk 0:01:51.2]} 20. Bxg7 {[%clk 0:01:58.9]} 20... Kxg7 {[%clk
0:01:52.1]} 21. Nd4 {[%clk 0:01:59.7]} 21... Ne5 {[%clk 0:01:37.4]} 22. f4
{[%clk 0:01:46.1]} 22... Ned7 {[%clk 0:01:34.3]} 23. Bb5 {[%clk 0:01:45.5]}
23... Nc5 {[%clk 0:01:29.8]} 24. Re1 {[%clk 0:01:43]} 24... Ncxa4 {[%clk
0:01:21.5]} 25. Bf1 {[%clk 0:01:10.2]} 25... Nc5 {[%clk 0:01:17.4]} 26. b4
{[%clk 0:01:10.6]} 26... axb4 {[%clk 0:01:12.2]} 27. Rxb4 {[%clk 0:01:11.5]}
27... Nbd7 {[%clk 0:01:12]} 28. e5 {[%clk 0:01:10.9]} 28... Ra2 {[%clk
0:00:59.7]} 29. h4 {[%clk 0:01:06.9]} 29... Rca8 {[%clk 0:00:56.9]} 30. exd6
{[%clk 0:00:53.1]} 30... exd6 {[%clk 0:00:57.8]} 31. Nb5 {[%clk 0:00:53.8]}
31... Nf6 {[%clk 0:00:44.2]} 32. Rd4 {[%clk 0:00:38.2]} 32... Rb2 {[%clk
0:00:27.5]} 33. Nxd6 {[%clk 0:00:31.8]} 33... Ra3 {[%clk 0:00:25.4]} 34. Re2
{[%clk 0:00:17.4]} 34... Rxg3+ {[%clk 0:00:22]} 35. Kf2 {[%clk 0:00:15.5]} 35...
Rgb3 {[%clk 0:00:19.1]} 36. Rxb2 {[%clk 0:00:05.7]} 36... Rxb2+ {[%clk 0:00:20]}
37. Kf3 {[%clk 0:00:06]} 37... Rb3+ {[%clk 0:00:17.2]} 38. Kf2 {[%clk
0:00:05.3]} 38... Kf8 {[%clk 0:00:16.8]} 39. Be2 {[%clk 0:00:05.3]} 39... h5
{[%clk 0:00:16.1]} 40. Nc4 {[%clk 0:00:04.5]} 40... Nfe4+ {[%clk 0:00:15.9]} 41.
Kg2 {[%clk 0:00:05.1]} 41... Rg3+ {[%clk 0:00:15.4]} 42. Kf1 {[%clk 0:00:05.5]}
42... Rc3 {[%clk 0:00:14.5]} 43. d6 {[%clk 0:00:05]} 43... Nf6 {[%clk
0:00:14.9]} 44. Ne5 {[%clk 0:00:04.6]} 44... Ne6 {[%clk 0:00:13.7]} 45. Rd1
{[%clk 0:00:04.2]} 45... Rc8 {[%clk 0:00:11.2]} 46. d7 {[%clk 0:00:04.5]} 46...
Rd8 {[%clk 0:00:11.5]} 47. Bb5 {[%clk 0:00:05.4]} 47... Ke7 {[%clk 0:00:11.2]}
48. Re1 {[%clk 0:00:04.4]} 48... Nd4 {[%clk 0:00:09.7]} 49. Nc6+ {[%clk
0:00:04.3]} 49... Kxd7 {[%clk 0:00:08.4]} 50. Nxd4+ {[%clk 0:00:04.4]} 50... Kc7
{[%clk 0:00:08]} 51. Nf3 {[%clk 0:00:04.9]} 51... Nd5 {[%clk 0:00:07.2]} 52. Bc4
{[%clk 0:00:04.9]} 52... f6 {[%clk 0:00:06.9]} 53. Bxd5 {[%clk 0:00:04.7]} 53...
Rxd5 {[%clk 0:00:07.8]} 54. Re6 {[%clk 0:00:05]} 54... Rf5 {[%clk 0:00:08.2]}
55. Re4 {[%clk 0:00:05.3]} 55... Kd6 {[%clk 0:00:08.2]} 56. Ke2 {[%clk
0:00:05.7]} 56... Ra5 {[%clk 0:00:07.8]} 57. Ke3 {[%clk 0:00:05.4]} 57... Ra3+
{[%clk 0:00:07.8]} 58. Kf2 {[%clk 0:00:06]} 58... Kd5 {[%clk 0:00:07.9]} 59.
Rd4+ {[%clk 0:00:06.1]} 59... Ke6 {[%clk 0:00:08.4]} 60. Rb4 {[%clk 0:00:06.1]}
60... Ra7 {[%clk 0:00:08]} 61. Nd4+ {[%clk 0:00:04.5]} 61... Kd5 {[%clk
0:00:07.7]} 62. Ne2 {[%clk 0:00:05]} 62... Ke6 {[%clk 0:00:07.7]} 63. Rb5 {[%clk
0:00:04.8]} 63... Kf7 {[%clk 0:00:05.5]} 64. f5 {[%clk 0:00:04.9]} 64... gxf5
{[%clk 0:00:06.4]} 65. Nf4 {[%clk 0:00:05.4]} 65... Ra4 {[%clk 0:00:05.8]} 66.
Rxf5 {[%clk 0:00:05.1]} 66... Ke7 {[%clk 0:00:04.1]} 67. Kg3 {[%clk 0:00:04.2]}
67... Ra3+ {[%clk 0:00:04.5]} 68. Kg2 {[%clk 0:00:04.6]} 68... Ra2+ {[%clk
0:00:03.8]} 69. Kf3 {[%clk 0:00:04.8]} 69... Ra3+ {[%clk 0:00:03.6]} 70. Ke4
{[%clk 0:00:05.2]} 70... Ra4+ {[%clk 0:00:04]} 71. Ke3 {[%clk 0:00:05.7]} 71...
Ra3+ {[%clk 0:00:04.4]} 72. Nd3 {[%clk 0:00:06.2]} 72... Ra4 {[%clk 0:00:04.4]}
73. Rxh5 {[%clk 0:00:06.7]} 73... Kf7 {[%clk 0:00:05.3]} 74. Nf4 {[%clk
0:00:05.8]} 74... Ra3+ {[%clk 0:00:05.1]} 75. Kd2 {[%clk 0:00:05.9]} 75... Ra4
{[%clk 0:00:04.1]} 76. Rf5 {[%clk 0:00:06.3]} 76... Kg7 {[%clk 0:00:03.6]} 77.
h5 {[%clk 0:00:06.3]} 77... b5 {[%clk 0:00:04]} 78. Kc3 {[%clk 0:00:06.7]} 78...
Rc4+ {[%clk 0:00:03.9]} 79. Kb3 {[%clk 0:00:06.9]} 79... Re4 {[%clk 0:00:04.4]}
80. Nd5 {[%clk 0:00:06.1]} 80... Re5 {[%clk 0:00:04.4]} 81. Rxe5 {[%clk
0:00:05.1]} 81... fxe5 {[%clk 0:00:05.3]} 82. Kc3 {[%clk 0:00:05.5]} 82... Kh6
{[%clk 0:00:05.6]} 83. Nf6 {[%clk 0:00:05.9]} 83... Kg5 {[%clk 0:00:05.9]} 84.
Nd7 {[%clk 0:00:05.5]} 84... Kxh5 {[%clk 0:00:06.2]} 85. Nxe5 {[%clk 0:00:06.4]}
85... b4+ {[%clk 0:00:06.8]} 86. Kxb4 {[%clk 0:00:06.2]} 1/2-1/2

[Event "*** Titled Tuesday Blitz"]
[Site "Chess.com"]
[Date "2021.04.20"]
[Round "10"]
[White "chessajedrezz2020"]
[Black "AwareIdea"]
[Result "0-1"]
[WhiteElo "2695"]
[BlackElo "2500"]
[TimeControl "180+1"]
[EndTime "11:58:21 PDT"]
[Termination "AwareIdea won by resignation"]

1. Nf3 {[%clk 0:03:00.9]} 1... d5 {[%clk 0:02:57]} 2. d4 {[%clk 0:03:00.8]} 2...
Nf6 {[%clk 0:02:56.3]} 3. c4 {[%clk 0:03:00.8]} 3... e6 {[%clk 0:02:56.6]} 4.
Nc3 {[%clk 0:03:00.7]} 4... Bb4 {[%clk 0:02:56.6]} 5. e3 {[%clk 0:02:41.8]} 5...
O-O {[%clk 0:02:55.5]} 6. Bd3 {[%clk 0:02:42.1]} 6... b6 {[%clk 0:02:55.3]} 7.
O-O {[%clk 0:02:42]} 7... Ba6 {[%clk 0:02:51.5]} 8. Qe2 {[%clk 0:02:37.4]} 8...
c5 {[%clk 0:02:44.2]} 9. Rd1 {[%clk 0:02:33.8]} 9... Bxc3 {[%clk 0:02:31]} 10.
bxc3 {[%clk 0:02:33.1]} 10... cxd4 {[%clk 0:02:31.4]} 11. cxd4 {[%clk
0:02:06.9]} 11... Nbd7 {[%clk 0:02:20.4]} 12. Ba3 {[%clk 0:02:01.3]} 12... Re8
{[%clk 0:02:20.1]} 13. Rac1 {[%clk 0:01:50]} 13... Rc8 {[%clk 0:01:46.1]} 14.
Rc2 {[%clk 0:01:28.6]} 14... dxc4 {[%clk 0:01:35.7]} 15. Bxc4 {[%clk 0:01:26.4]}
15... Rxc4 {[%clk 0:01:22.3]} 16. Rxc4 {[%clk 0:01:27.3]} 16... Qa8 {[%clk
0:01:01.4]} 17. Rdc1 {[%clk 0:01:21.4]} 17... h6 {[%clk 0:00:59.8]} 18. Qc2
{[%clk 0:01:06.6]} 18... Bxc4 {[%clk 0:00:58.7]} 19. Qxc4 {[%clk 0:01:07.5]}
19... Nd5 {[%clk 0:00:56.4]} 20. Qa6 {[%clk 0:00:53.4]} 20... N7f6 {[%clk
0:00:53.3]} 21. Ne5 {[%clk 0:00:45.6]} 21... Ne4 {[%clk 0:00:49.2]} 22. Bb2
{[%clk 0:00:28.1]} 22... f6 {[%clk 0:00:42.7]} 23. Nd3 {[%clk 0:00:24.4]} 23...
Nd6 {[%clk 0:00:37.6]} 24. Ba3 {[%clk 0:00:21.5]} 24... Ne4 {[%clk 0:00:29.3]}
25. Bb2 {[%clk 0:00:13.7]} 25... Kh7 {[%clk 0:00:22.9]} 26. h3 {[%clk
0:00:13.3]} 26... Nd6 {[%clk 0:00:19.3]} 27. Qa4 {[%clk 0:00:12.8]} 27... Rc8
{[%clk 0:00:17.3]} 28. Rc2 {[%clk 0:00:11.7]} 28... Rxc2 {[%clk 0:00:16.6]} 29.
Qxc2 {[%clk 0:00:12.5]} 29... Qc8 {[%clk 0:00:17.3]} 30. Qb3 {[%clk 0:00:05.5]}
30... Qc4 {[%clk 0:00:16.2]} 31. Ba3 {[%clk 0:00:05.1]} 31... Qxb3 {[%clk
0:00:14.4]} 32. axb3 {[%clk 0:00:06]} 32... Nb5 {[%clk 0:00:13.7]} 33. Bb2
{[%clk 0:00:06.4]} 33... a5 {[%clk 0:00:13.8]} 34. Kf1 {[%clk 0:00:03.5]} 34...
Kg8 {[%clk 0:00:13.9]} 35. Ke1 {[%clk 0:00:03.5]} 35... Kf7 {[%clk 0:00:13.9]}
36. Kd2 {[%clk 0:00:03.9]} 36... g5 {[%clk 0:00:13.8]} 37. e4 {[%clk 0:00:04.1]}
37... Ndc7 {[%clk 0:00:12.5]} 38. Ke3 {[%clk 0:00:04.1]} 38... Ke7 {[%clk
0:00:12.7]} 39. g4 {[%clk 0:00:03.6]} 39... Kd7 {[%clk 0:00:09.8]} 40. Ne1
{[%clk 0:00:03.7]} 40... Kd6 {[%clk 0:00:09.7]} 41. Nd3 {[%clk 0:00:03.8]} 41...
Na6 {[%clk 0:00:09.3]} 42. Bc1 {[%clk 0:00:02.2]} 42... Nac7 {[%clk 0:00:07.9]}
43. Bd2 {[%clk 0:00:02.5]} 43... Kd7 {[%clk 0:00:07.5]} 44. f3 {[%clk
0:00:02.9]} 44... Ne8 {[%clk 0:00:07.8]} 45. Be1 {[%clk 0:00:03.3]} 45... Nbc7
{[%clk 0:00:07.7]} 46. Bg3 {[%clk 0:00:03.6]} 46... Na6 {[%clk 0:00:08.1]} 47.
Be1 {[%clk 0:00:02.6]} 47... Nec7 {[%clk 0:00:07.9]} 48. h4 {[%clk 0:00:02.9]}
48... Nb5 {[%clk 0:00:05.6]} 49. h5 {[%clk 0:00:02.8]} 49... Nd6 {[%clk
0:00:04.3]} 50. Bd2 {[%clk 0:00:02.6]} 50... Nb7 {[%clk 0:00:04.6]} 51. Bc1
{[%clk 0:00:02.8]} 51... b5 {[%clk 0:00:05]} 52. Ba3 {[%clk 0:00:02.9]} 52... b4
{[%clk 0:00:04.3]} 53. Bc1 {[%clk 0:00:02.7]} 53... Nc7 {[%clk 0:00:04.6]} 54.
Bb2 {[%clk 0:00:02.1]} 54... Kd6 {[%clk 0:00:03.7]} 55. Nc1 {[%clk 0:00:02.3]}
55... Nb5 {[%clk 0:00:03.9]} 56. Ne2 {[%clk 0:00:03.2]} 56... Nd8 {[%clk
0:00:02.9]} 57. Kd3 {[%clk 0:00:03.6]} 57... Nc6 {[%clk 0:00:03.4]} 58. Bc1
{[%clk 0:00:03.4]} 58... Nc7 {[%clk 0:00:03.3]} 59. Be3 {[%clk 0:00:03.5]} 59...
Na7 {[%clk 0:00:03.2]} 60. Bf2 {[%clk 0:00:03.3]} 60... Nab5 {[%clk 0:00:03.6]}
61. Bg3+ {[%clk 0:00:02.9]} 61... Kc6 {[%clk 0:00:04]} 62. Kc4 {[%clk
0:00:01.7]} 62... Nd6+ {[%clk 0:00:02.1]} 63. Kd3 {[%clk 0:00:01.7]} 63... Ndb5
{[%clk 0:00:01.9]} 64. Bf2 {[%clk 0:00:02.6]} 64... Nd6 {[%clk 0:00:01.9]} 65.
Be3 {[%clk 0:00:03.5]} 65... e5 {[%clk 0:00:02.4]} 66. dxe5 {[%clk 0:00:02.9]}
66... fxe5 {[%clk 0:00:03.3]} 67. Bc1 {[%clk 0:00:03.2]} 67... Kb5 {[%clk
0:00:03.9]} 68. Ng3 {[%clk 0:00:03.1]} 68... Na6 {[%clk 0:00:04.3]} 69. Bb2
{[%clk 0:00:03.2]} 69... Nc5+ {[%clk 0:00:04.8]} 70. Kc2 {[%clk 0:00:03.6]}
70... Nf7 {[%clk 0:00:04.5]} 71. Nf5 {[%clk 0:00:03.1]} 71... a4 {[%clk
0:00:05]} 72. bxa4+ {[%clk 0:00:03]} 72... Kxa4 {[%clk 0:00:05.9]} 73. Ne3
{[%clk 0:00:02.9]} 73... Kb5 {[%clk 0:00:06.2]} 74. Nd5 {[%clk 0:00:02.4]} 74...
Kc4 {[%clk 0:00:06.6]} 75. Nb6+ {[%clk 0:00:02.7]} 75... Kb5 {[%clk 0:00:06.2]}
76. Nd5 {[%clk 0:00:03]} 76... Ka4 {[%clk 0:00:06.4]} 77. Ne3 {[%clk 0:00:02.8]}
77... Kb5 {[%clk 0:00:06.3]} 78. Nf5 {[%clk 0:00:02.2]} 78... Na4 {[%clk
0:00:06.4]} 79. Ne3 {[%clk 0:00:03.1]} 79... Nxb2 {[%clk 0:00:06]} 80. Kxb2
{[%clk 0:00:04]} 80... Kc5 {[%clk 0:00:06.9]} 81. Nf5 {[%clk 0:00:04.3]} 81...
Kc4 {[%clk 0:00:07]} 82. Kc2 {[%clk 0:00:04.7]} 82... b3+ {[%clk 0:00:07.2]} 83.
Kd2 {[%clk 0:00:05.1]} 83... Kb4 {[%clk 0:00:07.2]} 84. Ne3 {[%clk 0:00:04.9]}
84... Kc5 {[%clk 0:00:06.6]} 85. Kc3 {[%clk 0:00:04.9]} 85... b2 {[%clk
0:00:06.8]} 86. Kxb2 {[%clk 0:00:04.8]} 86... Kd4 {[%clk 0:00:07.7]} 87. Nf5+
{[%clk 0:00:04.7]} 87... Kd3 {[%clk 0:00:08.3]} 88. Kb3 {[%clk 0:00:01.4]} 88...
Ke2 {[%clk 0:00:08.7]} 89. Kc4 {[%clk 0:00:01.8]} 89... Kxf3 {[%clk 0:00:08.3]}
90. Kd5 {[%clk 0:00:02.5]} 90... Kxg4 {[%clk 0:00:08.3]} 91. Ng7 {[%clk
0:00:03.4]} 91... Kf4 {[%clk 0:00:07.9]} 92. Ke6 {[%clk 0:00:03.7]} 92... Nh8
{[%clk 0:00:06.8]} 93. Kf6 {[%clk 0:00:03.7]} 93... g4 {[%clk 0:00:07.2]} 94.
Ne6+ {[%clk 0:00:03.9]} 94... Kf3 {[%clk 0:00:07.1]} 95. Kxe5 {[%clk 0:00:03.2]}
95... g3 {[%clk 0:00:07.6]} 96. Nf4 {[%clk 0:00:03.6]} 96... Nf7+ {[%clk
0:00:06.6]} 97. Kf5 {[%clk 0:00:03.2]} 97... Nd6+ {[%clk 0:00:07.1]} 98. Ke5
{[%clk 0:00:03.5]} 98... Nxe4 {[%clk 0:00:07.6]} 99. Nh3 {[%clk 0:00:03.8]}
99... Ng5 {[%clk 0:00:06.1]} 100. Nxg5+ {[%clk 0:00:03.7]} 100... hxg5 {[%clk
0:00:06.2]} 101. h6 {[%clk 0:00:04.6]} 101... g2 {[%clk 0:00:06.8]} 102. h7
{[%clk 0:00:05.5]} 102... g1=Q {[%clk 0:00:07.4]} 103. h8=Q {[%clk 0:00:05.7]}
103... Qa1+ {[%clk 0:00:07.6]} 104. Kf5 {[%clk 0:00:06.6]} 104... Qxh8 {[%clk
0:00:08.4]} 105. Kxg5 {[%clk 0:00:07.4]} 105... Qg8+ {[%clk 0:00:08.8]} 0-1

[Event "*** Titled Tuesday Blitz"]
[Site "Chess.com"]
[Date "2021.04.20"]
[Round "11"]
[White "chessmadara"]
[Black "Serly25"]
[Result "0-1"]
[WhiteElo "2150"]
[BlackElo "1967"]
[TimeControl "180+1"]
[EndTime "12:01:57 PDT"]
[Termination "Serly25 won by resignation"]

1. e4 {[%clk 0:03:00.9]} 1... e6 {[%clk 0:02:59.7]} 2. d4 {[%clk 0:03:00.1]}
2... d5 {[%clk 0:03:00.1]} 3. Nc3 {[%clk 0:02:59.9]} 3... Nf6 {[%clk 0:02:58.5]}
4. Bg5 {[%clk 0:02:58.6]} 4... Be7 {[%clk 0:02:58.4]} 5. e5 {[%clk 0:02:53.4]}
5... Nfd7 {[%clk 0:02:58.4]} 6. Bxe7 {[%clk 0:02:53.8]} 6... Qxe7 {[%clk
0:02:59]} 7. f4 {[%clk 0:02:54.3]} 7... Nc6 {[%clk 0:02:53.1]} 8. Nf3 {[%clk
0:02:53.5]} 8... b6 {[%clk 0:02:53.3]} 9. Be2 {[%clk 0:02:49.4]} 9... Bb7 {[%clk
0:02:53.8]} 10. O-O {[%clk 0:02:48.6]} 10... O-O-O {[%clk 0:02:53.7]} 11. a4
{[%clk 0:02:45.3]} 11... a5 {[%clk 0:02:52.8]} 12. Nb5 {[%clk 0:02:42.1]} 12...
Kb8 {[%clk 0:02:47.1]} 13. c3 {[%clk 0:02:41.5]} 13... f6 {[%clk 0:02:42.5]} 14.
b4 {[%clk 0:02:40.4]} 14... fxe5 {[%clk 0:02:37.4]} 15. fxe5 {[%clk 0:02:41.3]}
15... Rdf8 {[%clk 0:02:29.7]} 16. Qd2 {[%clk 0:02:40.1]} 16... h6 {[%clk
0:02:23.5]} 17. Rfb1 {[%clk 0:02:24]} 17... g5 {[%clk 0:02:21.2]} 18. bxa5
{[%clk 0:02:18.6]} 18... Nxa5 {[%clk 0:02:22.1]} 19. c4 {[%clk 0:02:18.8]} 19...
dxc4 {[%clk 0:02:11.3]} 20. Nc3 {[%clk 0:01:56.3]} 20... g4 {[%clk 0:01:57.8]}
21. Ne1 {[%clk 0:01:54.9]} 21... Qh4 {[%clk 0:01:52.8]} 22. Nc2 {[%clk
0:01:50.4]} 0-1

[Event "*** Titled Tuesday Blitz"]
[Site "Chess.com"]
[Date "2021.04.20"]
[Round "11"]
[White "NefeLV"]
[Black "C_K_G"]
[Result "0-1"]
[WhiteElo "1816"]
[BlackElo "2091"]
[TimeControl "180+1"]
[EndTime "12:01:57 PDT"]
[Termination "C_K_G won by resignation"]

1. e4 {[%clk 0:03:00.9]} 1... c5 {[%clk 0:02:59.7]} 2. Nf3 {[%clk 0:03:01.2]}
2... d6 {[%clk 0:03:00.1]} 3. Bc4 {[%clk 0:03:01.3]} 3... e6 {[%clk 0:03:00]} 4.
O-O {[%clk 0:03:00.3]} 4... Nc6 {[%clk 0:03:00.3]} 5. Re1 {[%clk 0:03:00]} 5...
Be7 {[%clk 0:02:59.4]} 6. c3 {[%clk 0:02:59.7]} 6... Nf6 {[%clk 0:02:57.3]} 7.
d3 {[%clk 0:02:59.7]} 7... O-O {[%clk 0:02:56.5]} 8. Nbd2 {[%clk 0:02:58.6]}
8... d5 {[%clk 0:02:56.6]} 9. exd5 {[%clk 0:02:57.5]} 9... exd5 {[%clk
0:02:57.5]} 10. Bb3 {[%clk 0:02:57.3]} 10... h6 {[%clk 0:02:56.8]} 11. Nf1
{[%clk 0:02:56.4]} 11... Bd6 {[%clk 0:02:55.3]} 12. d4 {[%clk 0:02:53.9]} 12...
Bg4 {[%clk 0:02:53.6]} 13. Ne3 {[%clk 0:02:49.5]} 13... Bh5 {[%clk 0:02:51.5]}
14. Bc2 {[%clk 0:02:45.7]} 14... cxd4 {[%clk 0:02:50]} 15. cxd4 {[%clk
0:02:45.1]} 15... Bxf3 {[%clk 0:02:50]} 16. gxf3 {[%clk 0:02:44.1]} 16... Nh5
{[%clk 0:02:42.5]} 17. Ng4 {[%clk 0:02:38.5]} 17... Qh4 {[%clk 0:02:34.6]} 18.
Qd3 {[%clk 0:02:33.5]} 18... f5 {[%clk 0:02:33.8]} 19. Re6 {[%clk 0:02:19.7]}
19... Bf4 {[%clk 0:02:29.5]} 20. b3 {[%clk 0:01:45.1]} 20... Bxc1 {[%clk
0:02:26.4]} 21. Rxc1 {[%clk 0:01:42.7]} 21... Nf4 {[%clk 0:02:26.5]} 22. Qxf5
{[%clk 0:01:22.1]} 22... Rxf5 {[%clk 0:02:24.8]} 0-1

[Event "*** Titled Tuesday Blitz"]
[Site "Chess.com"]
[Date "2021.04.20"]
[Round "11"]
[White "hansen"]
[Black "Jungle_Jaguar"]
[Result "1-0"]
[WhiteElo "2817"]
[BlackElo "2710"]
[TimeControl "180+1"]
[EndTime "12:02:37 PDT"]
[Termination "hansen won by resignation"]

1. e4 {[%clk 0:02:54.4]} 1... c5 {[%clk 0:03:00]} 2. Nf3 {[%clk 0:02:40.2]} 2...
d6 {[%clk 0:03:00.2]} 3. Bb5+ {[%clk 0:02:38.2]} 3... Bd7 {[%clk 0:02:59.6]} 4.
Bxd7+ {[%clk 0:02:38.2]} 4... Qxd7 {[%clk 0:03:00.1]} 5. O-O {[%clk 0:02:38.7]}
5... Nc6 {[%clk 0:03:00.2]} 6. Re1 {[%clk 0:02:39.3]} 6... Nf6 {[%clk
0:02:59.9]} 7. c3 {[%clk 0:02:40.1]} 7... g6 {[%clk 0:02:58.3]} 8. d4 {[%clk
0:02:39.4]} 8... cxd4 {[%clk 0:02:55.4]} 9. cxd4 {[%clk 0:02:39.8]} 9... e5
{[%clk 0:02:55.8]} 10. d5 {[%clk 0:02:30.5]} 10... Ne7 {[%clk 0:02:55.5]} 11.
Nc3 {[%clk 0:02:29.7]} 11... Bg7 {[%clk 0:02:54.6]} 12. a4 {[%clk 0:02:27]}
12... O-O {[%clk 0:02:54]} 13. Qb3 {[%clk 0:02:27.3]} 13... Rfc8 {[%clk
0:02:47]} 14. Nd2 {[%clk 0:02:20.2]} 14... Nh5 {[%clk 0:02:38.6]} 15. Nc4 {[%clk
0:02:20.3]} 15... Qc7 {[%clk 0:02:38.5]} 16. Na3 {[%clk 0:02:15.1]} 16... a6
{[%clk 0:02:36.6]} 17. Be3 {[%clk 0:02:14.2]} 17... f5 {[%clk 0:02:33.1]} 18.
Rac1 {[%clk 0:02:09]} 18... Qd7 {[%clk 0:02:24.2]} 19. Nc4 {[%clk 0:02:02]}
19... f4 {[%clk 0:02:22.5]} 20. Nb6 {[%clk 0:01:58.3]} 20... Qg4 {[%clk
0:02:15.7]} 21. f3 {[%clk 0:01:58.4]} 21... Qg5 {[%clk 0:02:13.9]} 22. Bf2
{[%clk 0:01:57.5]} 22... Rxc3 {[%clk 0:01:45.4]} 23. Rxc3 {[%clk 0:01:50.5]}
23... Rf8 {[%clk 0:01:45.5]} 24. Nd7 {[%clk 0:01:49.3]} 24... Rf7 {[%clk
0:01:44]} 25. Qxb7 {[%clk 0:01:44.1]} 25... h6 {[%clk 0:01:42.8]} 26. Qxa6
{[%clk 0:01:41.7]} 26... Kh7 {[%clk 0:01:40.1]} 27. h4 {[%clk 0:01:40.4]} 1-0

[Event "*** Titled Tuesday Blitz"]
[Site "Chess.com"]
[Date "2021.04.20"]
[Round "11"]
[White "VladimirBugayev"]
[Black "DarZay"]
[Result "1-0"]
[WhiteElo "2257"]
[BlackElo "2170"]
[TimeControl "180+1"]
[EndTime "12:02:58 PDT"]
[Termination "VladimirBugayev won by checkmate"]

1. e4 {[%clk 0:03:00.9]} 1... e5 {[%clk 0:02:59.1]} 2. Nf3 {[%clk 0:02:56]} 2...
Nc6 {[%clk 0:02:58.8]} 3. d4 {[%clk 0:02:56.6]} 3... exd4 {[%clk 0:02:58.6]} 4.
Nxd4 {[%clk 0:02:57.3]} 4... Bc5 {[%clk 0:02:59]} 5. Nb3 {[%clk 0:02:57.1]} 5...
Bb6 {[%clk 0:02:58.9]} 6. Nc3 {[%clk 0:02:57.8]} 6... Nf6 {[%clk 0:02:56]} 7.
Qe2 {[%clk 0:02:56]} 7... O-O {[%clk 0:02:55.4]} 8. Bg5 {[%clk 0:02:56.4]} 8...
h6 {[%clk 0:02:52.2]} 9. Bh4 {[%clk 0:02:56]} 9... d5 {[%clk 0:02:47.9]} 10.
O-O-O {[%clk 0:02:31.2]} 10... d4 {[%clk 0:02:47.7]} 11. Nd5 {[%clk 0:02:31]}
11... Re8 {[%clk 0:02:18.3]} 12. Bxf6 {[%clk 0:02:06.8]} 12... gxf6 {[%clk
0:02:19.2]} 13. Qh5 {[%clk 0:02:06.6]} 13... Kh7 {[%clk 0:02:13.1]} 14. Qxf7+
{[%clk 0:01:51.3]} 14... Kh8 {[%clk 0:02:12.9]} 15. Nxf6 {[%clk 0:01:50.1]}
15... Bf5 {[%clk 0:02:01.7]} 16. Nxe8 {[%clk 0:01:37.8]} 16... Qg5+ {[%clk
0:01:57]} 17. f4 {[%clk 0:01:30.4]} 17... Qxf4+ {[%clk 0:01:56.8]} 18. Kb1
{[%clk 0:01:29.9]} 18... Rxe8 {[%clk 0:01:45.4]} 19. Qxe8+ {[%clk 0:01:28.2]}
19... Kg7 {[%clk 0:01:44.9]} 20. exf5 {[%clk 0:01:20.1]} 20... Qxf5 {[%clk
0:01:43.2]} 21. Bd3 {[%clk 0:01:16.4]} 21... Qg4 {[%clk 0:01:41.4]} 22. Rhf1
{[%clk 0:01:10.9]} 22... Qh5 {[%clk 0:01:34.1]} 23. Qf8# {[%clk 0:01:05.1]} 1-0

[Event "*** Titled Tuesday Blitz"]
[Site "Chess.com"]
[Date "2021.04.20"]
[Round "11"]
[White "dmitrijiIM"]
[Black "olksuna"]
[Result "0-1"]
[WhiteElo "2543"]
[BlackElo "2657"]
[TimeControl "180+1"]
[EndTime "12:03:02 PDT"]
[Termination "olksuna won by resignation"]

1. e4 {[%clk 0:03:00.9]} 1... e6 {[%clk 0:03:00.2]} 2. d4 {[%clk 0:03:01]} 2...
d5 {[%clk 0:03:00.7]} 3. Nd2 {[%clk 0:03:01.6]} 3... Be7 {[%clk 0:03:00.2]} 4.
Ngf3 {[%clk 0:03:01.4]} 4... Nf6 {[%clk 0:03:00.2]} 5. Bd3 {[%clk 0:02:57.9]}
5... c5 {[%clk 0:02:57.3]} 6. exd5 {[%clk 0:02:56.1]} 6... Qxd5 {[%clk
0:02:46.4]} 7. dxc5 {[%clk 0:02:50.9]} 7... O-O {[%clk 0:02:38.6]} 8. O-O {[%clk
0:02:44.4]} 8... a5 {[%clk 0:02:35.9]} 9. Qe2 {[%clk 0:02:41.2]} 9... Nbd7
{[%clk 0:02:31.7]} 10. Nc4 {[%clk 0:02:22.3]} 10... Bxc5 {[%clk 0:02:25.3]} 11.
Rd1 {[%clk 0:02:15.4]} 11... Qh5 {[%clk 0:02:21.2]} 12. Nce5 {[%clk 0:02:07.9]}
12... Bxf2+ {[%clk 0:01:54.5]} 13. Qxf2 {[%clk 0:01:30.5]} 13... Nxe5 {[%clk
0:01:51.8]} 14. Nxe5 {[%clk 0:01:31.4]} 14... Qxd1+ {[%clk 0:01:49.9]} 15. Bf1
{[%clk 0:01:28.3]} 15... Rd8 {[%clk 0:01:44.8]} 16. Bg5 {[%clk 0:01:22.2]} 16...
Qxa1 {[%clk 0:01:40.3]} 17. Bxf6 {[%clk 0:01:22.4]} 17... Rd1 {[%clk 0:01:40.9]}
18. Bh4 {[%clk 0:01:16.6]} 18... Rxf1+ {[%clk 0:01:39.1]} 19. Qxf1 {[%clk
0:01:16.7]} 19... Qxf1+ {[%clk 0:01:39.7]} 20. Kxf1 {[%clk 0:01:17.6]} 20... f6
{[%clk 0:01:39.3]} 21. Nd3 {[%clk 0:01:17.7]} 21... e5 {[%clk 0:01:38.1]} 22.
Nc5 {[%clk 0:01:15.4]} 22... b6 {[%clk 0:01:36.3]} 23. Nb3 {[%clk 0:01:15.9]}
23... Be6 {[%clk 0:01:35.1]} 24. Nd2 {[%clk 0:01:16]} 24... Bxa2 {[%clk
0:01:34.2]} 25. b3 {[%clk 0:01:16]} 25... a4 {[%clk 0:01:34.3]} 26. bxa4 {[%clk
0:01:16.7]} 26... Rxa4 {[%clk 0:01:33.7]} 27. Ke2 {[%clk 0:01:17.6]} 27... Rxh4
{[%clk 0:01:33.2]} 0-1